{"text_format":"1","workbook":"xlsx","n_sheets":4,"sheets":["Main","Samir Fouad","Omar Nagy","Said Reda"],"not_rendered":{"charts":0,"images":0,"macros":1,"external_links":0,"defined_names":2,"comments":0,"pivot_tables":0},"unopened":[],"bounds":{"document_bytes":16777216,"sheet_cells":100000,"rows_first":2000,"rows_last":500,"rows_between":2000,"halvings":0,"cell_chars":16384,"cell_head_chars":4096},"cells_cut":0,"cells_raw":0,"read":"whole","date_system":"1900"}

{"sheet":"Main","index":0,"n_rows":224,"n_cols":43,"rows_kept":224,"cut":false,"hidden":false,"merged":[[0,35,0,42],[223,35,223,40],[0,0,0,2],[0,32,0,34]]}
["Participating",null,null,"Ticket",null,null,null,null,null,null,null,null,{"$f":"COLUMN()","v":13},null,null,null,17,18,19,20,21,22,23,24,25,26,"27","28","29","30",null,"Codes","Cancel",null,null,"Collection"]
["Adl","Chd","Baby","Muh Kullanıcı","Muhasebe Tarih","Zarf","Accounting","Ödeme Beklenen","Sale Type","SlipNo","Slip Tutarı","Free","Tour Name","Voucher","Tour Date","Guide Name","Customer Package","Packet","Colection Control","Hotel","Suppliers","Sale Date","Trans Region Name","Remark","Lock","Ticket No","Tour Price","Discount","Ekstra Price","Net Amount","Collection",null,"Adl","Chd","Baby","Date","Process","Type","Receipt No","Curr","Exchange","Amount","Remark"]
[null,null,null,null,null,null,null,null,null,null,null,null,null,null,null,"Said Reda",null,null,null,null,null,null,null,null,null,1000055,null,null,null,195]
[null,null,null,null,null,null,null,null,null,null,null,null,null,null,null,"Said Reda",null,null,null,null,null,null,null,null,null,1000057,null,null,null,60]
[null,null,null,null,null,null,null,null,null,null,null,null,null,null,null,"Said Reda",null,null,null,null,null,null,null,null,null,1000058,null,null,null,70]
[null,null,null,null,null,null,null,null,null,null,null,null,"Shopping",null,null,"Said Reda",null,null,null,null,null,null,null,null,null,1000059,null,null,null,0]
[null,null,null,null,null,null,null,null,null,null,null,null,null,null,null,"Said Reda",null,null,null,null,null,null,null,null,null,1000060,null,null,null,160]
[null,null,null,null,null,null,null,null,null,null,null,null,null,null,null,"Said Reda",null,null,null,null,null,null,null,null,null,1000061,null,null,null,110]
[null,null,null,null,null,null,null,null,null,null,null,null,null,null,null,"Said Reda",null,null,null,null,null,null,null,null,null,1000062,null,null,null,60]
[null,null,null,null,null,null,null,null,null,null,null,null,"Shopping",null,null,"Said Reda",null,null,null,null,null,null,null,null,null,1000063,null,null,null,0]
[null,null,null,null,null,null,null,null,null,null,null,null,null,null,null,"Said Reda",null,null,null,null,null,null,null,null,null,1000064,null,null,null,80]
[null,null,null,null,null,null,null,null,null,null,null,null,null,null,null,"Said Reda",null,null,null,null,null,null,null,null,null,1000065,null,null,null,60]
[null,null,null,null,null,null,null,null,null,null,null,null,null,null,null,"Said Reda",null,null,null,null,null,null,null,null,null,1000066,null,null,null,75]
[null,null,null,null,null,null,null,null,null,null,null,null,"Shopping",null,null,"Said Reda",null,null,null,null,null,null,null,null,null,1000067,null,null,null,0]
[null,null,null,null,null,null,null,null,null,null,null,null,"Shopping",null,null,"Said Reda",null,null,null,null,null,null,null,null,null,1000069,null,null,null,0]
[null,null,null,null,null,null,null,null,null,null,null,null,"Shopping",null,null,"Said Reda",null,null,null,null,null,null,null,null,null,1000070,null,null,null,0]
[null,null,null,null,null,null,null,null,null,null,null,null,null,null,null,"Said Reda",null,null,null,null,null,null,null,null,null,1000072,null,null,null,60]
[null,null,null,null,null,null,null,null,null,null,null,null,"Shopping",null,null,"Said Reda",null,null,null,null,null,null,null,null,null,1000073,null,null,null,0]
[null,null,null,null,null,null,null,null,null,null,null,null,"Shopping",null,null,"Said Reda",null,null,null,null,null,null,null,null,null,1000074,null,null,null,0]
[null,null,null,null,null,null,null,null,null,null,null,null,null,null,null,"Said Reda",null,null,null,null,null,null,null,null,null,1000075,null,null,null,70]
[null,null,null,null,null,null,null,null,null,null,null,null,null,null,null,"Said Reda",null,null,null,null,null,null,null,null,null,1000077,null,null,null,90]
[null,null,null,null,null,null,null,null,null,null,null,null,null,null,null,"Said Reda",null,null,null,null,null,null,null,null,null,1000078,null,null,null,200]
[null,null,null,null,null,null,null,null,null,null,null,null,null,null,null,"Said Reda",null,null,null,null,null,null,null,null,null,1000079,null,null,null,100]
[null,null,null,null,null,null,null,null,null,null,null,null,null,null,null,"Said Reda",null,null,null,null,null,null,null,null,null,1000080,null,null,null,60]
[null,null,null,null,null,null,null,null,null,null,null,null,null,null,null,"Said Reda",null,null,null,null,null,null,null,null,null,1000081,null,null,null,160]
[null,null,null,null,null,null,null,null,null,null,null,null,"Shopping",null,null,"Said Reda",null,null,null,null,null,null,null,null,null,1000082,null,null,null,0]
[null,null,null,null,null,null,null,null,null,null,null,null,null,null,null,"Said Reda",null,null,null,null,null,null,null,null,null,1000083,null,null,null,80]
[null,null,null,null,null,null,null,null,null,null,null,null,null,null,null,"Samir Fouad",null,null,null,null,null,null,null,null,null,1000217,null,null,null,110]
[null,null,null,null,null,null,null,null,null,null,null,null,null,null,null,"Samir Fouad",null,null,null,null,null,null,null,null,null,1000218,null,null,null,60]
[null,null,null,null,null,null,null,null,null,null,null,null,null,null,null,"Samir Fouad",null,null,null,null,null,null,null,null,null,1000219,null,null,null,110]
[null,null,null,null,null,null,null,null,null,null,null,null,null,null,null,"Samir Fouad",null,null,null,null,null,null,null,null,null,1000220,null,null,null,60]
[null,null,null,null,null,null,null,null,null,null,null,null,null,null,null,"Samir Fouad",null,null,null,null,null,null,null,null,null,1000223,null,null,null,110]
[null,null,null,null,null,null,null,null,null,null,null,null,null,null,null,"Samir Fouad",null,null,null,null,null,null,null,null,null,1000224,null,null,null,60]
[null,null,null,null,null,null,null,null,null,null,null,null,null,null,null,"Samir Fouad",null,null,null,null,null,null,null,null,null,1000226,null,null,null,70]
[null,null,null,null,null,null,null,null,null,null,null,null,"20 $ Discount",null,null,"Samir Fouad",null,null,null,null,null,null,null,null,null,1000228,null,null,null,110]
[null,null,null,null,null,null,null,null,null,null,null,null,"10 $ Discount",null,null,"Samir Fouad",null,null,null,null,null,null,null,null,null,1000229,null,null,null,50]
[null,null,null,null,null,null,null,null,null,null,null,null,null,null,null,"Samir Fouad",null,null,null,null,null,null,null,null,null,1000233,null,null,null,30]
[null,null,null,null,null,null,null,null,null,null,null,null,"10 $ Discount",null,null,"Samir Fouad",null,null,null,null,null,null,null,null,null,1000234,null,null,null,60]
[null,null,null,null,null,null,null,null,null,null,null,null,"10 $ Discount",null,null,"Samir Fouad",null,null,null,null,null,null,null,null,null,1000238,null,null,null,60]
[null,null,null,null,null,null,null,null,null,null,null,null,"Shopping",null,null,"Samir Fouad",null,null,null,null,null,null,null,null,null,1000239,null,null,null,0]
[null,null,null,null,null,null,null,null,null,null,null,null,"5 $ Discount",null,null,"Samir Fouad",null,null,null,null,null,null,null,null,null,1000240,null,null,null,25]
[null,null,null,null,null,null,null,null,null,null,null,null,null,null,null,"Samir Fouad",null,null,null,null,null,null,null,null,null,1000241,null,null,null,30]
[null,null,null,null,null,null,null,null,null,null,null,null,null,null,null,"Samir Fouad",null,null,null,null,null,null,null,null,null,1000242,null,null,null,110]
[null,null,null,null,null,null,null,null,null,null,null,null,"Shopping",null,null,"Samir Fouad",null,null,null,null,null,null,null,null,null,1000243,null,null,null,0]
[null,null,null,null,null,null,null,null,null,null,null,null,null,null,null,"Samir Fouad",null,null,null,null,null,null,null,null,null,1000244,null,null,null,160]
[null,null,null,null,null,null,null,null,null,null,null,null,"Shopping",null,null,"Samir Fouad",null,null,null,null,null,null,null,null,null,1000245,null,null,null,0]
[null,null,null,null,null,null,null,null,null,null,null,null,null,null,null,"Samir Fouad",null,null,null,null,null,null,null,null,null,1000247,null,null,null,80]
[null,null,null,null,null,null,null,null,null,null,null,null,"Shopping",null,null,"Samir Fouad",null,null,null,null,null,null,null,null,null,1000248,null,null,null,0]
[null,null,null,null,null,null,null,null,null,null,null,null,"Shopping",null,null,"Samir Fouad",null,null,null,null,null,null,null,null,null,1000249,null,null,null,0]
[null,null,null,null,null,null,null,null,null,null,null,null,null,null,null,"Samir Fouad",null,null,null,null,null,null,null,null,null,1000250,null,null,null,100]
[null,null,null,null,null,null,null,null,null,null,null,null,null,null,null,"Omar Nagy",null,null,null,null,null,null,null,null,null,1000411,null,null,null,55]
[null,null,null,null,null,null,null,null,null,null,null,null,null,null,null,"Omar Nagy",null,null,null,null,null,null,null,null,null,1000413,null,null,null,220]
[null,null,null,null,null,null,null,null,null,null,null,null,null,null,null,"Omar Nagy",null,null,null,null,null,null,null,null,null,1000414,null,null,null,60]
[null,null,null,null,null,null,null,null,null,null,null,null,null,null,null,"Omar Nagy",null,null,null,null,null,null,null,null,null,1000416,null,null,null,90]
[null,null,null,null,null,null,null,null,null,null,null,null,"5 $ Discount",null,null,"Omar Nagy",null,null,null,null,null,null,null,null,null,1000421,null,null,null,55]
[null,null,null,null,null,null,null,null,null,null,null,null,null,null,null,"Omar Nagy",null,null,null,null,null,null,null,null,null,1000422,null,null,null,60]
[null,null,null,null,null,null,null,null,null,null,null,null,null,null,null,"Omar Nagy",null,null,null,null,null,null,null,null,null,1000423,null,null,null,60]
[null,null,null,null,null,null,null,null,null,null,null,null,null,null,null,"Omar Nagy",null,null,null,null,null,null,null,null,null,1000424,null,null,null,30]
[null,null,null,null,null,null,null,null,null,null,null,null,null,null,null,"Omar Nagy",null,null,null,null,null,null,null,null,null,1000425,null,null,null,60]
[null,null,null,null,null,null,null,null,null,null,null,null,null,null,null,"Omar Nagy",null,null,null,null,null,null,null,null,null,1000427,null,null,null,80]
[null,null,null,null,null,null,null,null,null,null,null,null,"Shopping",null,null,"Omar Nagy",null,null,null,null,null,null,null,null,null,1000428,null,null,null,0]
[null,null,null,null,null,null,null,null,null,null,null,null,"Shopping",null,null,"Omar Nagy",null,null,null,null,null,null,null,null,null,1000429,null,null,null,0]
[null,null,null,null,null,null,null,null,null,null,null,null,null,null,null,"Omar Nagy",null,null,null,null,null,null,null,null,null,1000430,null,null,null,165]
[null,null,null,null,null,null,null,null,null,null,null,null,null,null,null,"Omar Nagy",null,null,null,null,null,null,null,null,null,1000431,null,null,null,60]
[null,null,null,null,null,null,null,null,null,null,null,null,null,null,null,"Omar Nagy",null,null,null,null,null,null,null,null,null,1000432,null,null,null,80]
[null,null,null,null,null,null,null,null,null,null,null,null,null,null,null,"Omar Nagy",null,null,null,null,null,null,null,null,null,1000433,null,null,null,110]
[null,null,null,null,null,null,null,null,null,null,null,null,"Shopping",null,null,"Omar Nagy",null,null,null,null,null,null,null,null,null,1000434,null,null,null,0]
[null,null,null,null,null,null,null,null,null,null,null,null,"10 $ Discount",null,null,"Omar Nagy",null,null,null,null,null,null,null,null,null,1000435,null,null,null,100]
[null,null,null,null,null,null,null,null,null,null,null,null,"Shopping",null,null,"Omar Nagy",null,null,null,null,null,null,null,null,null,1000436,null,null,null,0]
[null,null,null,null,null,null,null,null,null,null,null,null,"Shopping",null,null,"Omar Nagy",null,null,null,null,null,null,null,null,null,1000437,null,null,null,0]
[null,null,null,null,null,null,null,null,null,null,null,null,null,null,null,"Omar Nagy",null,null,null,null,null,null,null,null,null,1000438,null,null,null,440]
[null,null,null,null,null,null,null,null,null,null,null,null,"35$ Discount",null,null,"Omar Nagy",null,null,null,null,null,null,null,null,null,1000439,null,null,null,115]
[null,null,null,null,null,null,null,null,null,null,null,null,null,null,null,"Samir Fouad",null,null,null,null,null,null,null,null,null,1000575,null,null,null,40]
[null,null,null,null,null,null,null,null,null,null,null,null,"Shopping",null,null,"Samir Fouad",null,null,null,null,null,null,null,null,null,1000588,null,null,null,0]
[null,null,null,null,null,null,null,null,null,null,null,null,null,null,null,"Samir Fouad",null,null,null,null,null,null,null,null,null,1000701,null,null,null,60]
[null,null,null,null,null,null,null,null,null,null,null,null,null,null,null,"Samir Fouad",null,null,null,null,null,null,null,null,null,1000702,null,null,null,80]
[null,null,null,null,null,null,null,null,null,null,null,null,"Shopping",null,null,"Samir Fouad",null,null,null,null,null,null,null,null,null,1000703,null,null,null,0]
[null,null,null,null,null,null,null,null,null,null,null,null,null,null,null,"Samir Fouad",null,null,null,null,null,null,null,null,null,1000704,null,null,null,80]
[null,null,null,null,null,null,null,null,null,null,null,null,null,null,null,"Samir Fouad",null,null,null,null,null,null,null,null,null,1000706,null,null,null,200]
[null,null,null,null,null,null,null,null,null,null,null,null,null,null,null,"Samir Fouad",null,null,null,null,null,null,null,null,null,1000707,null,null,null,70]
[null,null,null,null,null,null,null,null,null,null,null,null,"Shopping",null,null,"Samir Fouad",null,null,null,null,null,null,null,null,null,1000708,null,null,null,0]
[null,null,null,null,null,null,null,null,null,null,null,null,null,null,null,"Samir Fouad",null,null,null,null,null,null,null,null,null,1000709,null,null,null,80]
[null,null,null,null,null,null,null,null,null,null,null,null,null,null,null,"Samir Fouad",null,null,null,null,null,null,null,null,null,1000710,null,null,null,35]
[null,null,null,null,null,null,null,null,null,null,null,null,"Shopping",null,null,"Samir Fouad",null,null,null,null,null,null,null,null,null,1000711,null,null,null,0]
[null,null,null,null,null,null,null,null,null,null,null,null,null,null,null,"Samir Fouad",null,null,null,null,null,null,null,null,null,1000712,null,null,null,40]
[null,null,null,null,null,null,null,null,null,null,null,null,"5 $ Discount",null,null,"Samir Fouad",null,null,null,null,null,null,null,null,null,1000713,null,null,null,208]
[null,null,null,null,null,null,null,null,null,null,null,null,"5 $ Discount",null,null,"Samir Fouad",null,null,null,null,null,null,null,null,null,1000714,null,null,null,95]
[null,null,null,null,null,null,null,null,null,null,null,null,"5 $ Discount",null,null,"Samir Fouad",null,null,null,null,null,null,null,null,null,1000715,null,null,null,30]
[null,null,null,null,null,null,null,null,null,null,null,null,"Shopping",null,null,"Samir Fouad",null,null,null,null,null,null,null,null,null,1000716,null,null,null,0]
[null,null,null,null,null,null,null,null,null,null,null,null,null,null,null,"Samir Fouad",null,null,null,null,null,null,null,null,null,1000717,null,null,null,55]
[null,null,null,null,null,null,null,null,null,null,null,null,null,null,null,"Samir Fouad",null,null,null,null,null,null,null,null,null,1000718,null,null,null,95]
[null,null,null,null,null,null,null,null,null,null,null,null,"Shopping",null,null,"Samir Fouad",null,null,null,null,null,null,null,null,null,1000719,null,null,null,0]
[null,null,null,null,null,null,null,null,null,null,null,null,null,null,null,"Samir Fouad",null,null,null,null,null,null,null,null,null,1000720,null,null,null,90]
[null,null,null,null,null,null,null,null,null,null,null,null,null,null,null,"Samir Fouad",null,null,null,null,null,null,null,null,null,1000721,null,null,null,110]
[null,null,null,null,null,null,null,null,null,null,null,null,"Shopping",null,null,"Samir Fouad",null,null,null,null,null,null,null,null,null,1000723,null,null,null,0]
[null,null,null,null,null,null,null,null,null,null,null,null,"10 $ Discount",null,null,"Samir Fouad",null,null,null,null,null,null,null,null,null,1000724,null,null,null,110]
[null,null,null,null,null,null,null,null,null,null,null,null,"Shopping",null,null,"Samir Fouad",null,null,null,null,null,null,null,null,null,1000725,null,null,null,0]
[null,null,null,null,null,null,null,null,null,null,null,null,null,null,null,"Samir Fouad",null,null,null,null,null,null,null,null,null,1000726,null,null,null,80]
[null,null,null,null,null,null,null,null,null,null,null,null,"Shopping",null,null,"Samir Fouad",null,null,null,null,null,null,null,null,null,1000727,null,null,null,0]
[null,null,null,null,null,null,null,null,null,null,null,null,"15 $ Discount",null,null,"Samir Fouad",null,null,null,null,null,null,null,null,null,1000728,null,null,null,90]
[null,null,null,null,null,null,null,null,null,null,null,null,"5 $ Discount",null,null,"Samir Fouad",null,null,null,null,null,null,null,null,null,1000729,null,null,null,30]
[null,null,null,null,null,null,null,null,null,null,null,null,null,null,null,"Samir Fouad",null,null,null,null,null,null,null,null,null,1000730,null,null,null,110]
[null,null,null,null,null,null,null,null,null,null,null,null,"Shopping",null,null,"Samir Fouad",null,null,null,null,null,null,null,null,null,1000731,null,null,null,0]
[null,null,null,null,null,null,null,null,null,null,null,null,"Shopping",null,null,"Samir Fouad",null,null,null,null,null,null,null,null,null,1000732,null,null,null,0]
[null,null,null,null,null,null,null,null,null,null,null,null,null,null,null,"Samir Fouad",null,null,null,null,null,null,null,null,null,1000733,null,null,null,160]
[null,null,null,null,null,null,null,null,null,null,null,null,null,null,null,"Samir Fouad",null,null,null,null,null,null,null,null,null,1000734,null,null,null,160]
[null,null,null,null,null,null,null,null,null,null,null,null,null,null,null,"Samir Fouad",null,null,null,null,null,null,null,null,null,1000735,null,null,null,110]
[null,null,null,null,null,null,null,null,null,null,null,null,null,null,null,"Samir Fouad",null,null,null,null,null,null,null,null,null,1000736,null,null,null,160]
[null,null,null,null,null,null,null,null,null,null,null,null,null,null,null,"Samir Fouad",null,null,null,null,null,null,null,null,null,1000737,null,null,null,110]
[null,null,null,null,null,null,null,null,null,null,null,null,null,null,null,"Samir Fouad",null,null,null,null,null,null,null,null,null,1000738,null,null,null,160]
[null,null,null,null,null,null,null,null,null,null,null,null,null,null,null,"Samir Fouad",null,null,null,null,null,null,null,null,null,1000739,null,null,null,110]
[null,null,null,null,null,null,null,null,null,null,null,null,null,null,null,"Samir Fouad",null,null,null,null,null,null,null,null,null,1000740,null,null,null,160]
[null,null,null,null,null,null,null,null,null,null,null,null,null,null,null,"Samir Fouad",null,null,null,null,null,null,null,null,null,1000741,null,null,null,240]
[null,null,null,null,null,null,null,null,null,null,null,null,"Shopping",null,null,"Samir Fouad",null,null,null,null,null,null,null,null,null,1000742,null,null,null,0]
[null,null,null,null,null,null,null,null,null,null,null,null,null,null,null,"Samir Fouad",null,null,null,null,null,null,null,null,null,1000743,null,null,null,240]
[null,null,null,null,null,null,null,null,null,null,null,null,null,null,null,"Samir Fouad",null,null,null,null,null,null,null,null,null,1000744,null,null,null,186]
[null,null,null,null,null,null,null,null,null,null,null,null,null,null,null,"Samir Fouad",null,null,null,null,null,null,null,null,null,1000745,null,null,null,106]
[null,null,null,null,null,null,null,null,null,null,null,null,"Shopping",null,null,"Samir Fouad",null,null,null,null,null,null,null,null,null,1000746,null,null,null,0]
[null,null,null,null,null,null,null,null,null,null,null,null,"Shopping",null,null,"Samir Fouad",null,null,null,null,null,null,null,null,null,1000748,null,null,null,0]
[null,null,null,null,null,null,null,null,null,null,null,null,"10 $ Discount",null,null,"Samir Fouad",null,null,null,null,null,null,null,null,null,1000749,null,null,null,70]
[null,null,null,null,null,null,null,null,null,null,null,null,"Shopping",null,null,"Samir Fouad",null,null,null,null,null,null,null,null,null,1000750,null,null,null,0]
[null,null,null,null,null,null,null,null,null,null,null,null,null,null,null,"Samir Fouad",null,null,null,null,null,null,null,null,null,1000801,null,null,null,110]
[null,null,null,null,null,null,null,null,null,null,null,null,"Shopping",null,null,"Samir Fouad",null,null,null,null,null,null,null,null,null,1000802,null,null,null,0]
[null,null,null,null,null,null,null,null,null,null,null,null,null,null,null,"Samir Fouad",null,null,null,null,null,null,null,null,null,1000804,null,null,null,70]
[null,null,null,null,null,null,null,null,null,null,null,null,null,null,null,"Samir Fouad",null,null,null,null,null,null,null,null,null,1000805,null,null,null,80]
[null,null,null,null,null,null,null,null,null,null,null,null,null,null,null,"Samir Fouad",null,null,null,null,null,null,null,null,null,1000806,null,null,null,80]
[null,null,null,null,null,null,null,null,null,null,null,null,"Shopping",null,null,"Samir Fouad",null,null,null,null,null,null,null,null,null,1000807,null,null,null,0]
[null,null,null,null,null,null,null,null,null,null,null,null,"10 $ Discount",null,null,"Samir Fouad",null,null,null,null,null,null,null,null,null,1000808,null,null,null,60]
[null,null,null,null,null,null,null,null,null,null,null,null,"Shopping",null,null,"Samir Fouad",null,null,null,null,null,null,null,null,null,1000809,null,null,null,0]
[null,null,null,null,null,null,null,null,null,null,null,null,"20 $ Discount",null,null,"Samir Fouad",null,null,null,null,null,null,null,null,null,1000810,null,null,null,140]
[null,null,null,null,null,null,null,null,null,null,null,null,null,null,null,"Samir Fouad",null,null,null,null,null,null,null,null,null,1000811,null,null,null,80]
[null,null,null,null,null,null,null,null,null,null,null,null,null,null,null,"Samir Fouad",null,null,null,null,null,null,null,null,null,1000812,null,null,null,55]
[null,null,null,null,null,null,null,null,null,null,null,null,"Shopping",null,null,"Samir Fouad",null,null,null,null,null,null,null,null,null,1000814,null,null,null,0]
[null,null,null,null,null,null,null,null,null,null,null,null,"Shopping",null,null,"Samir Fouad",null,null,null,null,null,null,null,null,null,1000815,null,null,null,0]
[null,null,null,null,null,null,null,null,null,null,null,null,null,null,null,"Samir Fouad",null,null,null,null,null,null,null,null,null,1000816,null,null,null,160]
[null,null,null,null,null,null,null,null,null,null,null,null,null,null,null,"Samir Fouad",null,null,null,null,null,null,null,null,null,1000817,null,null,null,80]
[null,null,null,null,null,null,null,null,null,null,null,null,"Shopping",null,null,"Samir Fouad",null,null,null,null,null,null,null,null,null,1000818,null,null,null,0]
[null,null,null,null,null,null,null,null,null,null,null,null,null,null,null,"Samir Fouad",null,null,null,null,null,null,null,null,null,1000819,null,null,null,160]
[null,null,null,null,null,null,null,null,null,null,null,null,null,null,null,"Samir Fouad",null,null,null,null,null,null,null,null,null,1000820,null,null,null,120]
[null,null,null,null,null,null,null,null,null,null,null,null,null,null,null,"Samir Fouad",null,null,null,null,null,null,null,null,null,1000821,null,null,null,160]
[null,null,null,null,null,null,null,null,null,null,null,null,null,null,null,"Samir Fouad",null,null,null,null,null,null,null,null,null,1000822,null,null,null,120]
[null,null,null,null,null,null,null,null,null,null,null,null,"Shopping",null,null,"Samir Fouad",null,null,null,null,null,null,null,null,null,1000823,null,null,null,0]
[null,null,null,null,null,null,null,null,null,null,null,null,"Shopping",null,null,"Samir Fouad",null,null,null,null,null,null,null,null,null,1000824,null,null,null,0]
[null,null,null,null,null,null,null,null,null,null,null,null,"Shopping",null,null,"Samir Fouad",null,null,null,null,null,null,null,null,null,1000825,null,null,null,0]
[null,null,null,null,null,null,null,null,null,null,null,null,null,null,null,"Samir Fouad",null,null,null,null,null,null,null,null,null,1000826,null,null,null,70]
[null,null,null,null,null,null,null,null,null,null,null,null,"Shopping",null,null,"Samir Fouad",null,null,null,null,null,null,null,null,null,1000827,null,null,null,0]
[null,null,null,null,null,null,null,null,null,null,null,null,null,null,null,"Samir Fouad",null,null,null,null,null,null,null,null,null,1000828,null,null,null,120]
[null,null,null,null,null,null,null,null,null,null,null,null,null,null,null,"Samir Fouad",null,null,null,null,null,null,null,null,null,1000829,null,null,null,120]
[null,null,null,null,null,null,null,null,null,null,null,null,"20 $ Discount",null,null,"Samir Fouad",null,null,null,null,null,null,null,null,null,1000831,null,null,null,200]
[null,null,null,null,null,null,null,null,null,null,null,null,null,null,null,"Samir Fouad",null,null,null,null,null,null,null,null,null,1000832,null,null,null,320]
[null,null,null,null,null,null,null,null,null,null,null,null,"Shopping",null,null,"Samir Fouad",null,null,null,null,null,null,null,null,null,1000833,null,null,null,0]
[null,null,null,null,null,null,null,null,null,null,null,null,"Shopping",null,null,"Samir Fouad",null,null,null,null,null,null,null,null,null,1000834,null,null,null,0]
[null,null,null,null,null,null,null,null,null,null,null,null,null,null,null,"Samir Fouad",null,null,null,null,null,null,null,null,null,1000835,null,null,null,75]
[null,null,null,null,null,null,null,null,null,null,null,null,null,null,null,"Samir Fouad",null,null,null,null,null,null,null,null,null,1000836,null,null,null,55]
[null,null,null,null,null,null,null,null,null,null,null,null,"Shopping",null,null,"Samir Fouad",null,null,null,null,null,null,null,null,null,1000837,null,null,null,0]
[null,null,null,null,null,null,null,null,null,null,null,null,null,null,null,"Samir Fouad",null,null,null,null,null,null,null,null,null,1000838,null,null,null,60]
[null,null,null,null,null,null,null,null,null,null,null,null,"Shopping",null,null,"Samir Fouad",null,null,null,null,null,null,null,null,null,1000839,null,null,null,0]
[null,null,null,null,null,null,null,null,null,null,null,null,"Shopping",null,null,"Samir Fouad",null,null,null,null,null,null,null,null,null,1000840,null,null,null,0]
[null,null,null,null,null,null,null,null,null,null,null,null,"Shopping",null,null,"Samir Fouad",null,null,null,null,null,null,null,null,null,1000841,null,null,null,0]
[null,null,null,null,null,null,null,null,null,null,null,null,"Shopping",null,null,"Samir Fouad",null,null,null,null,null,null,null,null,null,1000843,null,null,null,0]
[null,null,null,null,null,null,null,null,null,null,null,null,"Shopping",null,null,"Samir Fouad",null,null,null,null,null,null,null,null,null,1000844,null,null,null,0]
[null,null,null,null,null,null,null,null,null,null,null,null,null,null,null,"Samir Fouad",null,null,null,null,null,null,null,null,null,1000845,null,null,null,30]
[null,null,null,null,null,null,null,null,null,null,null,null,"Shopping",null,null,"Samir Fouad",null,null,null,null,null,null,null,null,null,1000846,null,null,null,0]
[null,null,null,null,null,null,null,null,null,null,null,null,null,null,null,"Samir Fouad",null,null,null,null,null,null,null,null,null,1000847,null,null,null,80]
[null,null,null,null,null,null,null,null,null,null,null,null,"Shopping",null,null,"Samir Fouad",null,null,null,null,null,null,null,null,null,1000848,null,null,null,0]
[null,null,null,null,null,null,null,null,null,null,null,null,"10 $ Discount",null,null,"Samir Fouad",null,null,null,null,null,null,null,null,null,1000849,null,null,null,100]
[null,null,null,null,null,null,null,null,null,null,null,null,"Shopping",null,null,"Samir Fouad",null,null,null,null,null,null,null,null,null,1000850,null,null,null,0]
[null,null,null,null,null,null,null,null,null,null,null,null,null,null,null,"Samir Fouad",null,null,null,null,null,null,null,null,null,1001001,null,null,null,110]
[null,null,null,null,null,null,null,null,null,null,null,null,"Shopping",null,null,"Samir Fouad",null,null,null,null,null,null,null,null,null,1001002,null,null,null,0]
[null,null,null,null,null,null,null,null,null,null,null,null,null,null,null,"Samir Fouad",null,null,null,null,null,null,null,null,null,1001003,null,null,null,110]
[null,null,null,null,null,null,null,null,null,null,null,null,null,null,null,"Samir Fouad",null,null,null,null,null,null,null,null,null,1001004,null,null,null,60]
[null,null,null,null,null,null,null,null,null,null,null,null,"Shopping",null,null,"Samir Fouad",null,null,null,null,null,null,null,null,null,1001005,null,null,null,0]
[null,null,null,null,null,null,null,null,null,null,null,null,null,null,null,"Samir Fouad",null,null,null,null,null,null,null,null,null,1001006,null,null,null,110]
[null,null,null,null,null,null,null,null,null,null,null,null,"10 $ Discount",null,null,"Samir Fouad",null,null,null,null,null,null,null,null,null,1001007,null,null,null,100]
[null,null,null,null,null,null,null,null,null,null,null,null,"Shopping",null,null,"Samir Fouad",null,null,null,null,null,null,null,null,null,1001008,null,null,null,0]
[null,null,null,null,null,null,null,null,null,null,null,null,null,null,null,"Samir Fouad",null,null,null,null,null,null,null,null,null,1001009,null,null,null,110]
[null,null,null,null,null,null,null,null,null,null,null,null,"Shopping",null,null,"Samir Fouad",null,null,null,null,null,null,null,null,null,1001010,null,null,null,0]
[null,null,null,null,null,null,null,null,null,null,null,null,"Shopping",null,null,"Samir Fouad",null,null,null,null,null,null,null,null,null,1001011,null,null,null,0]
[null,null,null,null,null,null,null,null,null,null,null,null,null,null,null,"Samir Fouad",null,null,null,null,null,null,null,null,null,1001012,null,null,null,55]
[null,null,null,null,null,null,null,null,null,null,null,null,"Shopping",null,null,"Samir Fouad",null,null,null,null,null,null,null,null,null,1001013,null,null,null,0]
[null,null,null,null,null,null,null,null,null,null,null,null,"Shopping",null,null,"Samir Fouad",null,null,null,null,null,null,null,null,null,1001014,null,null,null,0]
[null,null,null,null,null,null,null,null,null,null,null,null,"Shopping",null,null,"Samir Fouad",null,null,null,null,null,null,null,null,null,1001015,null,null,null,0]
[null,null,null,null,null,null,null,null,null,null,null,null,"10 $ Discount",null,null,"Samir Fouad",null,null,null,null,null,null,null,null,null,1001016,null,null,null,110]
[null,null,null,null,null,null,null,null,null,null,null,null,null,null,null,"Samir Fouad",null,null,null,null,null,null,null,null,null,1001017,null,null,null,110]
[null,null,null,null,null,null,null,null,null,null,null,null,"10 $ Discount",null,null,"Samir Fouad",null,null,null,null,null,null,null,null,null,1001018,null,null,null,100]
[null,null,null,null,null,null,null,null,null,null,null,null,"Shopping",null,null,"Samir Fouad",null,null,null,null,null,null,null,null,null,1001019,null,null,null,0]
[null,null,null,null,null,null,null,null,null,null,null,null,"10 $ Discount",null,null,"Samir Fouad",null,null,null,null,null,null,null,null,null,1001020,null,null,null,100]
[null,null,null,null,null,null,null,null,null,null,null,null,"Shopping",null,null,"Samir Fouad",null,null,null,null,null,null,null,null,null,1001021,null,null,null,0]
[null,null,null,null,null,null,null,null,null,null,null,null,null,null,null,"Samir Fouad",null,null,null,null,null,null,null,null,null,1001022,null,null,null,99]
[null,null,null,null,null,null,null,null,null,null,null,null,"35$ Discount",null,null,"Samir Fouad",null,null,null,null,null,null,null,null,null,1001023,null,null,null,25]
[null,null,null,null,null,null,null,null,null,null,null,null,"Shopping",null,null,"Samir Fouad",null,null,null,null,null,null,null,null,null,1001024,null,null,null,0]
[null,null,null,null,null,null,null,null,null,null,null,null,"Shopping",null,null,"Samir Fouad",null,null,null,null,null,null,null,null,null,1001025,null,null,null,0]
[null,null,null,null,null,null,null,null,null,null,null,null,"5 $ Discount",null,null,"Samir Fouad",null,null,null,null,null,null,null,null,null,1001026,null,null,null,25]
[null,null,null,null,null,null,null,null,null,null,null,null,"5 $ Discount",null,null,"Samir Fouad",null,null,null,null,null,null,null,null,null,1001027,null,null,null,50]
[null,null,null,null,null,null,null,null,null,null,null,null,"10 $ Discount",null,null,"Samir Fouad",null,null,null,null,null,null,null,null,null,1001028,null,null,null,50]
[null,null,null,null,null,null,null,null,null,null,null,null,null,null,null,"Samir Fouad",null,null,null,null,null,null,null,null,null,1001029,null,null,null,198]
[null,null,null,null,null,null,null,null,null,null,null,null,"10 $ Discount",null,null,"Samir Fouad",null,null,null,null,null,null,null,null,null,1001030,null,null,null,100]
[null,null,null,null,null,null,null,null,null,null,null,null,"5 $ Discount",null,null,"Samir Fouad",null,null,null,null,null,null,null,null,null,1001031,null,null,null,25]
[null,null,null,null,null,null,null,null,null,null,null,null,"10 $ Discount",null,null,"Samir Fouad",null,null,null,null,null,null,null,null,null,1001032,null,null,null,100]
[null,null,null,null,null,null,null,null,null,null,null,null,null,null,null,"Samir Fouad",null,null,null,null,null,null,null,null,null,1001033,null,null,null,99]
[null,null,null,null,null,null,null,null,null,null,null,null,"Shopping",null,null,"Samir Fouad",null,null,null,null,null,null,null,null,null,1001034,null,null,null,0]
[null,null,null,null,null,null,null,null,null,null,null,null,null,null,null,"Samir Fouad",null,null,null,null,null,null,null,null,null,1001035,null,null,null,120]
[null,null,null,null,null,null,null,null,null,null,null,null,null,null,null,"Samir Fouad",null,null,null,null,null,null,null,null,null,1001036,null,null,null,220]
[null,null,null,null,null,null,null,null,null,null,null,null,"Shopping",null,null,"Samir Fouad",null,null,null,null,null,null,null,null,null,1001037,null,null,null,0]
[null,null,null,null,null,null,null,null,null,null,null,null,null,null,null,"Samir Fouad",null,null,null,null,null,null,null,null,null,1001038,null,null,null,110]
[null,null,null,null,null,null,null,null,null,null,null,null,null,null,null,"Samir Fouad",null,null,null,null,null,null,null,null,null,1001039,null,null,null,160]
[null,null,null,null,null,null,null,null,null,null,null,null,"Shopping",null,null,"Samir Fouad",null,null,null,null,null,null,null,null,null,1001040,null,null,null,0]
[null,null,null,null,null,null,null,null,null,null,null,null,null,null,null,"Samir Fouad",null,null,null,null,null,null,null,null,null,1001041,null,null,null,45]
[null,null,null,null,null,null,null,null,null,null,null,null,null,null,null,"Samir Fouad",null,null,null,null,null,null,null,null,null,1001042,null,null,null,120]
[null,null,null,null,null,null,null,null,null,null,null,null,"Shopping",null,null,"Samir Fouad",null,null,null,null,null,null,null,null,null,1001043,null,null,null,0]
[null,null,null,null,null,null,null,null,null,null,null,null,null,null,null,"Samir Fouad",null,null,null,null,null,null,null,null,null,1001044,null,null,null,60]
[null,null,null,null,null,null,null,null,null,null,null,null,"Shopping",null,null,"Samir Fouad",null,null,null,null,null,null,null,null,null,1001045,null,null,null,0]
[null,null,null,null,null,null,null,null,null,null,null,null,null,null,null,"Samir Fouad",null,null,null,null,null,null,null,null,null,1001046,null,null,null,160]
[null,null,null,null,null,null,null,null,null,null,null,null,"Shopping",null,null,"Samir Fouad",null,null,null,null,null,null,null,null,null,1001047,null,null,null,0]
[null,null,null,null,null,null,null,null,null,null,null,null,null,null,null,"Samir Fouad",null,null,null,null,null,null,null,null,null,1001048,null,null,null,80]
[null,null,null,null,null,null,null,null,null,null,null,null,null,null,null,"Samir Fouad",null,null,null,null,null,null,null,null,null,1001049,null,null,null,60]
[null,null,null,null,null,null,null,null,null,null,null,null,"5 $ Discount",null,null,"Samir Fouad",null,null,null,null,null,null,null,null,null,1001050,null,null,null,40]
[null,null,null,null,null,null,null,null,null,null,null,null,"Shopping",null,null,"Samir Fouad",null,null,null,null,null,null,null,null,null,1001051,null,null,null,0]
[null,null,null,null,null,null,null,null,null,null,null,null,null,null,null,"Samir Fouad",null,null,null,null,null,null,null,null,null,1001052,null,null,null,55]
[null,null,null,null,null,null,null,null,null,null,null,null,null,null,null,"Samir Fouad",null,null,null,null,null,null,null,null,null,1001053,null,null,null,40]
[null,null,null,null,null,null,null,null,null,null,null,null,"Shopping",null,null,"Samir Fouad",null,null,null,null,null,null,null,null,null,1001054,null,null,null,0]
[null,null,null,null,null,null,null,null,null,null,null,null,null,null,null,"Samir Fouad",null,null,null,null,null,null,null,null,null,1001055,null,null,null,320]
[null,null,null,null,null,null,null,null,null,null,null,null,"Shopping",null,null,"Samir Fouad",null,null,null,null,null,null,null,null,null,1001056,null,null,null,0]
[null,null,null,null,null,null,null,null,null,null,null,null,null,null,null,null,null,null,null,null,null,null,null,null,null,null,null,null,null,{"$f":"SUM(AD3:AD223)","v":14826}]

{"sheet":"Samir Fouad","index":1,"n_rows":245,"n_cols":9,"rows_kept":245,"cut":false,"hidden":false,"merged":[[37,0,37,1],[0,0,0,1],[0,4,1,4],[2,0,2,4],[4,0,4,4],[39,0,39,4],[41,0,41,1],[41,4,42,4],[43,0,43,4],[45,0,45,4],[119,0,119,1],[121,0,121,4],[86,0,86,4],[78,0,78,1],[80,0,80,4],[82,0,82,1],[82,4,83,4],[84,0,84,4],[244,0,244,4],[162,0,162,4],[164,0,164,1],[164,4,165,4],[166,0,166,4],[168,0,168,4],[201,0,201,1],[203,0,203,4],[205,0,205,1],[205,4,206,4],[160,0,160,1],[123,0,123,1],[207,0,207,4],[209,0,209,4],[242,0,242,1],[123,4,124,4],[125,0,125,4],[127,0,127,4]]}
[{"$f":"TODAY()","v":"2021-01-21"},null,null,null,1,null,null,null,{"$f":"C38+C79+C120+C161+C202+C243","v":11296}]
[]
["Company :Safari Company"]
[]
["Guide Name: Samir Fouad"]
[]
["No.","Voucher no.","Cash",null,"Remarks"]
[1,1000217,110,null,0]
[2,1000218,60,null,0]
[3,1000219,110,null,0]
[4,1000220,60,null,0]
[5,1000223,110,null,0]
[6,1000224,60,null,0]
[7,1000226,70,null,0]
[8,1000228,110,null,"20 $ Discount"]
[9,1000229,50,null,"10 $ Discount"]
[10,1000233,30,null,0]
[11,1000234,60,null,"10 $ Discount"]
[12,1000238,60,null,"10 $ Discount"]
[13,1000239,0,null,"Shopping"]
[14,1000240,25,null,"5 $ Discount"]
[15,1000241,30,null,0]
[16,1000242,110,null,0]
[17,1000243,0,null,"Shopping"]
[18,1000244,160,null,0]
[19,1000245,0,null,"Shopping"]
[20,1000247,80,null,0]
[21,1000248,0,null,"Shopping"]
[22,1000249,0,null,"Shopping"]
[23,1000250,100,null,0]
[24,1000575,40,null,0]
[25,1000588,0,null,"Shopping"]
[26,1000701,60,null,0]
[27,1000702,80,null,0]
[28,1000703,0,null,"Shopping"]
[29,1000704,80,null,0]
[30,1000706,200,null,0]
["Total :",null,{"$f":"SUM(C8:C37)","v":1855}]
[]
["Guide Signature :…………………………………………………………………………………………………….."]
[]
[{"$f":"TODAY()","v":"2021-01-21"},null,null,null,{"$f":"E1+1","v":2}]
[]
["Company :Safari Company"]
[]
["Guide Name: Samir Fouad"]
[]
["No.","Voucher no.","Cash",null,"Remarks"]
[31,1000707,70,null,0]
[32,1000708,0,null,"Shopping"]
[33,1000709,80,null,0]
[34,1000710,35,null,0]
[35,1000711,0,null,"Shopping"]
[36,1000712,40,null,0]
[37,1000713,208,null,"5 $ Discount"]
[38,1000714,95,null,"5 $ Discount"]
[39,1000715,30,null,"5 $ Discount"]
[40,1000716,0,null,"Shopping"]
[41,1000717,55,null,0]
[42,1000718,95,null,0]
[43,1000719,0,null,"Shopping"]
[44,1000720,90,null,0]
[45,1000721,110,null,0]
[46,1000723,0,null,"Shopping"]
[47,1000724,110,null,"10 $ Discount"]
[48,1000725,0,null,"Shopping"]
[49,1000726,80,null,0]
[50,1000727,0,null,"Shopping"]
[51,1000728,90,null,"15 $ Discount"]
[52,1000729,30,null,"5 $ Discount"]
[53,1000730,110,null,0]
[54,1000731,0,null,"Shopping"]
[55,1000732,0,null,"Shopping"]
[56,1000733,160,null,0]
[57,1000734,160,null,0]
[58,1000735,110,null,0]
[59,1000736,160,null,0]
[60,1000737,110,null,0]
["Total :",null,{"$f":"SUM(C49:C78)","v":2028}]
[]
["Guide Signature :…………………………………………………………………………………………………….."]
[]
[{"$f":"TODAY()","v":"2021-01-21"},null,null,null,{"$f":"E42+1","v":3}]
[]
["Company :Safari Company"]
[]
["Guide Name: Samir Fouad"]
[]
["No.","Voucher no.","Cash",null,"Remarks"]
[61,1000738,160,null,0]
[62,1000739,110,null,0]
[63,1000740,160,null,0]
[64,1000741,240,null,0]
[65,1000742,0,null,"Shopping"]
[66,1000743,240,null,0]
[67,1000744,186,null,0]
[68,1000745,106,null,0]
[69,1000746,0,null,"Shopping"]
[70,1000748,0,null,"Shopping"]
[71,1000749,70,null,"10 $ Discount"]
[72,1000750,0,null,"Shopping"]
[73,1000801,110,null,0]
[74,1000802,0,null,"Shopping"]
[75,1000804,70,null,0]
[76,1000805,80,null,0]
[77,1000806,80,null,0]
[78,1000807,0,null,"Shopping"]
[79,1000808,60,null,"10 $ Discount"]
[80,1000809,0,null,"Shopping"]
[81,1000810,140,null,"20 $ Discount"]
[82,1000811,80,null,0]
[83,1000812,55,null,0]
[84,1000814,0,null,"Shopping"]
[85,1000815,0,null,"Shopping"]
[86,1000816,160,null,0]
[87,1000817,80,null,0]
[88,1000818,0,null,"Shopping"]
[89,1000819,160,null,0]
[90,1000820,120,null,0]
["Total :",null,{"$f":"SUM(C90:C119)","v":2467}]
[]
["Guide Signature :…………………………………………………………………………………………………….."]
[]
[{"$f":"TODAY()","v":"2021-01-21"},null,null,null,{"$f":"E83+1","v":4}]
[]
["Company :Safari Company"]
[]
["Guide Name: Samir Fouad"]
[]
["No.","Voucher no.","Cash",null,"Remarks"]
[91,1000821,160,null,0]
[92,1000822,120,null,0]
[93,1000823,0,null,"Shopping"]
[94,1000824,0,null,"Shopping"]
[95,1000825,0,null,"Shopping"]
[96,1000826,70,null,0]
[97,1000827,0,null,"Shopping"]
[98,1000828,120,null,0]
[99,1000829,120,null,0]
[100,1000831,200,null,"20 $ Discount"]
[101,1000832,320,null,0]
[102,1000833,0,null,"Shopping"]
[103,1000834,0,null,"Shopping"]
[104,1000835,75,null,0]
[105,1000836,55,null,0]
[106,1000837,0,null,"Shopping"]
[107,1000838,60,null,0]
[108,1000839,0,null,"Shopping"]
[109,1000840,0,null,"Shopping"]
[110,1000841,0,null,"Shopping"]
[111,1000843,0,null,"Shopping"]
[112,1000844,0,null,"Shopping"]
[113,1000845,30,null,0]
[114,1000846,0,null,"Shopping"]
[115,1000847,80,null,0]
[116,1000848,0,null,"Shopping"]
[117,1000849,100,null,"10 $ Discount"]
[118,1000850,0,null,"Shopping"]
[119,1001001,110,null,0]
[120,1001002,0,null,"Shopping"]
["Total :",null,{"$f":"SUM(C131:C160)","v":1620}]
[]
["Guide Signature :…………………………………………………………………………………………………….."]
[]
[{"$f":"TODAY()","v":"2021-01-21"},null,null,null,{"$f":"E124+1","v":5}]
[]
["Company :Safari Company"]
[]
["Guide Name: Samir Fouad"]
[]
["No.","Voucher no.","Cash",null,"Remarks"]
[121,1001003,110,null,0]
[122,1001004,60,null,0]
[123,1001005,0,null,"Shopping"]
[124,1001006,110,null,0]
[125,1001007,100,null,"10 $ Discount"]
[126,1001008,0,null,"Shopping"]
[127,1001009,110,null,0]
[128,1001010,0,null,"Shopping"]
[129,1001011,0,null,"Shopping"]
[130,1001012,55,null,0]
[131,1001013,0,null,"Shopping"]
[132,1001014,0,null,"Shopping"]
[133,1001015,0,null,"Shopping"]
[134,1001016,110,null,"10 $ Discount"]
[135,1001017,110,null,0]
[136,1001018,100,null,"10 $ Discount"]
[137,1001019,0,null,"Shopping"]
[138,1001020,100,null,"10 $ Discount"]
[139,1001021,0,null,"Shopping"]
[140,1001022,99,null,0]
[141,1001023,25,null,"35$ Discount"]
[142,1001024,0,null,"Shopping"]
[143,1001025,0,null,"Shopping"]
[144,1001026,25,null,"5 $ Discount"]
[145,1001027,50,null,"5 $ Discount"]
[146,1001028,50,null,"10 $ Discount"]
[147,1001029,198,null,0]
[148,1001030,100,null,"10 $ Discount"]
[149,1001031,25,null,"5 $ Discount"]
[150,1001032,100,null,"10 $ Discount"]
["Total :",null,{"$f":"SUM(C172:C201)","v":1637}]
[]
["Guide Signature :…………………………………………………………………………………………………….."]
[]
[{"$f":"TODAY()","v":"2021-01-21"},null,null,null,{"$f":"E165+1","v":6}]
[]
["Company :Safari Company"]
[]
["Guide Name: Samir Fouad"]
[]
["No.","Voucher no.","Cash",null,"Remarks"]
[151,1001033,99,null,0]
[152,1001034,0,null,"Shopping"]
[153,1001035,120,null,0]
[154,1001036,220,null,0]
[155,1001037,0,null,"Shopping"]
[156,1001038,110,null,0]
[157,1001039,160,null,0]
[158,1001040,0,null,"Shopping"]
[159,1001041,45,null,0]
[160,1001042,120,null,0]
[161,1001043,0,null,"Shopping"]
[162,1001044,60,null,0]
[163,1001045,0,null,"Shopping"]
[164,1001046,160,null,0]
[165,1001047,0,null,"Shopping"]
[166,1001048,80,null,0]
[167,1001049,60,null,0]
[168,1001050,40,null,"5 $ Discount"]
[169,1001051,0,null,"Shopping"]
[170,1001052,55,null,0]
[171,1001053,40,null,0]
[172,1001054,0,null,"Shopping"]
[173,1001055,320,null,0]
[174,1001056,0,null,"Shopping"]
[175]
[176]
[177]
[178]
[179]
[180]
["Total :",null,{"$f":"SUM(C213:C242)","v":1689}]
[]
["Guide Signature :…………………………………………………………………………………………………….."]

{"sheet":"Omar Nagy","index":2,"n_rows":122,"n_cols":5,"rows_kept":122,"cut":false,"hidden":false,"merged":[[37,0,37,1],[0,0,0,1],[0,4,1,4],[2,0,2,4],[4,0,4,4],[39,0,39,4],[41,0,41,1],[41,4,42,4],[43,0,43,4],[45,0,45,4],[119,0,119,1],[121,0,121,4],[86,0,86,4],[78,0,78,1],[80,0,80,4],[82,0,82,1],[82,4,83,4],[84,0,84,4]]}
[{"$f":"TODAY()","v":"2021-01-21"},null,null,null,1]
[]
["Company :Safari Company"]
[]
["Guide Name: Omar Nagy"]
[]
["No.","Voucher no.","Cash",null,"Remarks"]
[{"$f":"IF($B8=\"\",\"\",SUBTOTAL(3,$B$8:B8))","v":1},1000411,55,null,0]
[{"$f":"IF($B9=\"\",\"\",SUBTOTAL(3,$B$8:B9))","v":2},1000413,220,null,0]
[3,1000414,60,null,0]
[4,1000416,90,null,0]
[5,1000421,55,null,"5 $ Discount"]
[6,1000422,60,null,0]
[7,1000423,60,null,0]
[8,1000424,30,null,0]
[9,1000425,60,null,0]
[10,1000427,80,null,0]
[11,1000428,0,null,"Shopping"]
[12,1000429,0,null,"Shopping"]
[13,1000430,165,null,0]
[14,1000431,60,null,0]
[15,1000432,80,null,0]
[16,1000433,110,null,0]
[17,1000434,0,null,"Shopping"]
[18,1000435,100,null,"10 $ Discount"]
[19,1000436,0,null,"Shopping"]
[20,1000437,0,null,"Shopping"]
[21,1000438,440,null,0]
[22,1000439,115,null,"35$ Discount"]
[23,null,null,null,""]
[24,null,null,null,""]
[25,null,null,null,""]
[26,null,null,null,""]
[27,null,null,null,""]
[28,null,null,null,""]
[29,null,null,null,""]
[30,null,null,null,""]
["Total :",null,{"$f":"SUM(C8:C37)","v":1840}]
[]
["Guide Signature :…………………………………………………………………………………………………….."]
[]
[{"$f":"TODAY()","v":"2021-01-21"},null,null,null,{"$f":"E1+1","v":2}]
[]
["Company :Safari Company"]
[]
["Guide Name: Omar Nagy"]
[]
["No.","Voucher no.","Cash",null,"Remarks"]
[31,null,null,null,""]
[32,null,null,null,""]
[33,null,null,null,""]
[34,null,null,null,""]
[35,null,null,null,""]
[36,null,null,null,""]
[37,null,null,null,""]
[38,null,null,null,""]
[39,null,null,null,""]
[40,null,null,null,""]
[41,null,null,null,""]
[42,null,null,null,""]
[43,null,null,null,""]
[44,null,null,null,""]
[45,null,null,null,""]
[46,null,null,null,""]
[47,null,null,null,""]
[48,null,null,null,""]
[49,null,null,null,""]
[50,null,null,null,""]
[51,null,null,null,""]
[52,null,null,null,""]
[53,null,null,null,""]
[54,null,null,null,""]
[55,null,null,null,""]
[56,null,null,null,""]
[57,null,null,null,""]
[58,null,null,null,""]
[59,null,null,null,""]
[60,null,null,null,""]
["Total :",null,{"$f":"SUM(C49:C78)","v":0}]
[]
["Guide Signature :…………………………………………………………………………………………………….."]
[]
[{"$f":"TODAY()","v":"2021-01-21"},null,null,null,{"$f":"E42+1","v":3}]
[]
["Company :Safari Company"]
[]
["Guide Name: Omar Nagy"]
[]
["No.","Voucher no.","Cash",null,"Remarks"]
[61,null,null,null,""]
[62,null,null,null,""]
[63,null,null,null,""]
[64,null,null,null,""]
[65,null,null,null,""]
[66,null,null,null,""]
[67,null,null,null,""]
[68,null,null,null,""]
[69,null,null,null,""]
[70,null,null,null,""]
[71,null,null,null,""]
[72,null,null,null,""]
[73,null,null,null,""]
[74,null,null,null,""]
[75,null,null,null,""]
[76,null,null,null,""]
[77,null,null,null,""]
[78,null,null,null,""]
[79,null,null,null,""]
[80,null,null,null,""]
[81,null,null,null,""]
[82,null,null,null,""]
[83,null,null,null,""]
[84,null,null,null,""]
[85,null,null,null,""]
[86,null,null,null,""]
[87,null,null,null,""]
[88,null,null,null,""]
[89,null,null,null,""]
[90,null,null,null,""]
["Total :",null,{"$f":"SUM(C90:C119)","v":0}]
[]
["Guide Signature :…………………………………………………………………………………………………….."]

{"sheet":"Said Reda","index":3,"n_rows":122,"n_cols":5,"rows_kept":122,"cut":false,"hidden":false,"merged":[[37,0,37,1],[0,0,0,1],[0,4,1,4],[2,0,2,4],[4,0,4,4],[39,0,39,4],[41,0,41,1],[41,4,42,4],[43,0,43,4],[45,0,45,4],[119,0,119,1],[121,0,121,4],[86,0,86,4],[78,0,78,1],[80,0,80,4],[82,0,82,1],[82,4,83,4],[84,0,84,4]]}
[{"$f":"TODAY()","v":"2021-01-21"},null,null,null,1]
[]
["Company :Safari Company"]
[]
["Guide Name: Said Reda"]
[]
["No.","Voucher no.","Cash",null,"Remarks"]
[1,1000055,195,null,0]
[2,1000057,60,null,0]
[3,1000058,70,null,0]
[4,1000059,0,null,"Shopping"]
[5,1000060,160,null,0]
[6,1000061,110,null,0]
[7,1000062,60,null,0]
[8,1000063,0,null,"Shopping"]
[9,1000064,80,null,0]
[10,1000065,60,null,0]
[11,1000066,75,null,0]
[12,1000067,0,null,"Shopping"]
[13,1000069,0,null,"Shopping"]
[14,1000070,0,null,"Shopping"]
[15,1000072,60,null,0]
[16,1000073,0,null,"Shopping"]
[17,1000074,0,null,"Shopping"]
[18,1000075,70,null,0]
[19,1000077,90,null,0]
[20,1000078,200,null,0]
[21,1000079,100,null,0]
[22,1000080,60,null,0]
[23,1000081,160,null,0]
[24,1000082,0,null,"Shopping"]
[25,1000083,80,null,0]
[26,null,null,null,""]
[27,null,null,null,""]
[28,null,null,null,""]
[29,null,null,null,""]
[30,null,null,null,""]
["Total :",null,{"$f":"SUM(C8:C37)","v":1690}]
[]
["Guide Signature :…………………………………………………………………………………………………….."]
[]
[{"$f":"TODAY()","v":"2021-01-21"},null,null,null,{"$f":"E1+1","v":2}]
[]
["Company :Safari Company"]
[]
["Guide Name: Said Reda"]
[]
["No.","Voucher no.","Cash",null,"Remarks"]
[31,null,null,null,""]
[32,null,null,null,""]
[33,null,null,null,""]
[34,null,null,null,""]
[35,null,null,null,""]
[36,null,null,null,""]
[37,null,null,null,""]
[38,null,null,null,""]
[39,null,null,null,""]
[40,null,null,null,""]
[41,null,null,null,""]
[42,null,null,null,""]
[43,null,null,null,""]
[44,null,null,null,""]
[45,null,null,null,""]
[46,null,null,null,""]
[47,null,null,null,""]
[48,null,null,null,""]
[49,null,null,null,""]
[50,null,null,null,""]
[51,null,null,null,""]
[52,null,null,null,""]
[53,null,null,null,""]
[54,null,null,null,""]
[55,null,null,null,""]
[56,null,null,null,""]
[57,null,null,null,""]
[58,null,null,null,""]
[59,null,null,null,""]
[60,null,null,null,""]
["Total :",null,{"$f":"SUM(C49:C78)","v":0}]
[]
["Guide Signature :…………………………………………………………………………………………………….."]
[]
[{"$f":"TODAY()","v":"2021-01-21"},null,null,null,{"$f":"E42+1","v":3}]
[]
["Company :Safari Company"]
[]
["Guide Name: Said Reda"]
[]
["No.","Voucher no.","Cash",null,"Remarks"]
[61,null,null,null,""]
[62,null,null,null,""]
[63,null,null,null,""]
[64,null,null,null,""]
[65,null,null,null,""]
[66,null,null,null,""]
[67,null,null,null,""]
[68,null,null,null,""]
[69,null,null,null,""]
[70,null,null,null,""]
[71,null,null,null,""]
[72,null,null,null,""]
[73,null,null,null,""]
[74,null,null,null,""]
[75,null,null,null,""]
[76,null,null,null,""]
[77,null,null,null,""]
[78,null,null,null,""]
[79,null,null,null,""]
[80,null,null,null,""]
[81,null,null,null,""]
[82,null,null,null,""]
[83,null,null,null,""]
[84,null,null,null,""]
[85,null,null,null,""]
[86,null,null,null,""]
[87,null,null,null,""]
[88,null,null,null,""]
[89,null,null,null,""]
[90,null,null,null,""]
["Total :",null,{"$f":"SUM(C90:C119)","v":0}]
[]
["Guide Signature :…………………………………………………………………………………………………….."]